fUSD/lending_fUSD_20250616
["ID","MTS","AMOUNT","RATE_DAILY","PERIOD"]
[366049018,1750032637851,-1018.4,0.00016438,2]
[366049019,1750032637861,-490.0,0.00016438,2]
[366049020,1750032637871,-516.5867456,0.00016438,2]
[366049021,1750032637885,-1745.32,0.00016438,2]
[366049022,1750032637895,-490.0,0.00016438,2]
[366049023,1750032637906,-490.0,0.00016438,2]
[366049024,1750032637916,-490.0,0.00016438,2]
[366049025,1750032637927,-967.0,0.00016438,2]
[366049026,1750032637937,-490.0,0.00016438,2]
[366049027,1750032637947,-490.0,0.00016438,2]
[366049028,1750032637958,-490.0,0.00016438,2]
[366049029,1750032637970,-460.0,0.00016438,2]
[366049030,1750032637980,-490.0,0.00016438,2]
[366049031,1750032637990,-490.0,0.00016438,2]
[366049032,1750032638000,-490.0,0.00016438,2]
[366049033,1750032638009,-490.0,0.00016438,2]
[366049034,1750032638019,-750.0,0.00016438,2]
[366049035,1750032638029,-490.0,0.00016438,2]
[366049036,1750032638040,-490.0,0.00016438,2]
[366049037,1750032638051,-490.0,0.00016438,2]
[366049038,1750032638061,-490.0,0.00016438,2]
[366049039,1750032638071,-490.0,0.00016438,2]
[366049040,1750032638085,-1978.16,0.00016438,2]
[366049041,1750032638095,-1261.76,0.00016438,2]
[366049042,1750032638105,-644.53,0.00016438,2]
[366049043,1750032638115,-490.24,0.00016438,2]
[366049044,1750032638124,-490.0,0.00016438,2]
[366049045,1750032638134,-490.0,0.00016438,2]
[366049046,1750032638144,-490.0,0.00016438,2]
[366049047,1750032638154,-775.64,0.00016438,2]
[366049048,1750032638164,-778.27,0.00016438,2]
[366049049,1750032638174,-490.0,0.00016438,2]
[366049050,1750032638184,-490.0,0.00016438,2]
[366049051,1750032638194,-490.0,0.00016438,2]
[366049052,1750032638203,-490.0,0.00016438,2]
[366049053,1750032638214,-2233.95,0.00016438,2]
[366049054,1750032638224,-490.0,0.00016438,2]
[366049055,1750032638234,-490.0,0.00016438,2]
[366049056,1750032638243,-159.73365121,0.00016438,2]
[366049057,1750032638253,-490.0,0.00016438,2]
[366049058,1750032638264,-1638.59,0.00016438,2]
[366049059,1750032638274,-2237.07,0.00016438,2]
[366049060,1750032638284,-1738.0,0.00016438,2]
[366049061,1750032638294,-490.0,0.00016438,2]
[366049062,1750032638304,-490.0,0.00016438,2]
[366049063,1750032638314,-825.97,0.00016438,2]
[366049064,1750032638326,-490.0,0.00016438,2]
[366049065,1750032638336,-490.0,0.00016438,2]
[366049066,1750032638346,-490.0,0.00016438,2]
[366049067,1750032638356,-490.0,0.00016438,2]
[366049068,1750032638366,-765.82,0.00016438,2]
[366049069,1750032638376,-818.18,0.00016438,2]
[366049070,1750032638386,-490.0,0.00016438,2]
[366049071,1750032638396,-490.0,0.00016438,2]
[366049072,1750032638406,-510.67,0.00016438,2]
[366049073,1750032638415,-1339.36,0.00016438,2]
[366049074,1750032638425,-490.0,0.00016438,2]
[366049075,1750032638436,-736.42,0.00016438,2]
[366049076,1750032638446,-490.0,0.00016438,2]
[366049077,1750032638456,-490.0,0.00016438,2]
[366049078,1750032638465,-492.39818169,0.00016438,2]
[366049079,1750032638475,-794.81,0.00016438,2]
[366049080,1750032638484,-490.0,0.00016438,2]
[366049081,1750032638494,-490.0,0.00016438,2]
[366049082,1750032638504,-880.74,0.00016438,2]
[366049083,1750032638514,-1292.81,0.00016438,2]
[366049085,1750032638523,-499.69,0.00016438,2]
[366049087,1750032638533,-490.0,0.00016438,2]
[366049089,1750032638543,-710.42,0.00016438,2]
[366049091,1750032638553,-490.0,0.00016438,2]
[366049093,1750032638565,-393.82374675,0.00016438,2]
[366049096,1750032638576,-490.0,0.00016438,2]
[366049097,1750032638586,-490.0,0.00016438,2]
[366049099,1750032638595,-541.99,0.00016438,2]
[366049102,1750032638605,-525.43899764,0.00016438,2]
[366049104,1750032638616,-490.0,0.00016438,2]
[366049106,1750032638625,-2747.09,0.00016438,2]
[366049108,1750032638635,-490.0,0.00016438,2]
[366049110,1750032638645,-2406.65,0.00016438,2]
[366049112,1750032638655,-1519.79,0.00016438,2]
[366049114,1750032638666,-490.0,0.00016438,2]
[366049116,1750032638675,-490.0,0.00016438,2]
[366049118,1750032638685,-490.0,0.00016438,2]
[366049119,1750032638695,-490.0,0.00016438,2]
[366049120,1750032638705,-490.0,0.00016438,2]
[366049121,1750032638715,-490.0,0.00016438,2]
[366049122,1750032638725,-490.0,0.00016438,2]
[366049123,1750032638735,-490.0,0.00016438,2]
[366049124,1750032638746,-1383.49,0.00016438,2]
[366049125,1750032638756,-1484.02,0.00016438,2]
[366049126,1750032638768,-490.0,0.00016438,2]
[366049127,1750032638778,-480.0,0.00016438,2]
[366049128,1750032638788,-490.0,0.00016438,2]
[366049129,1750032638798,-490.0,0.00016438,2]
[366049130,1750032638809,-490.0,0.00016438,2]
[366049131,1750032638820,-490.0,0.00016438,2]
[366049132,1750032638832,-1011.5,0.00016438,2]
[366049133,1750032638842,-490.0,0.00016438,2]
[366049134,1750032638852,-490.0,0.00016438,2]
[366049135,1750032638862,-531.95,0.00016438,2]
[366049136,1750032638872,-490.0,0.00016438,2]
[366049137,1750032638882,-490.0,0.00016438,2]
[366049138,1750032638891,-469.36349995,0.00016438,2]
[366049139,1750032638901,-306.5047565,0.00016438,2]
[366049140,1750032638910,-2761.12,0.00016438,2]
[366049141,1750032638920,-490.0,0.00016438,2]
[366049142,1750032638931,-490.0,0.00016438,2]
[366049143,1750032638940,-510.57,0.00016438,2]
[366049144,1750032638950,-612.5,0.00016438,2]
[366049145,1750032638959,-2661.01,0.00016438,2]
[366049146,1750032638970,-490.0,0.00016438,2]
[366049147,1750032638981,-670.74,0.00016438,2]
[366049148,1750032638991,-490.0,0.00016438,2]
[366049149,1750032639001,-1494.15,0.00016438,2]
[366049150,1750032639011,-490.0,0.00016438,2]
[366049151,1750032639021,-490.0,0.00016438,2]
[366049152,1750032639031,-1750.87,0.00016438,2]
[366049153,1750032639042,-490.0,0.00016438,2]
[366049154,1750032639052,-490.23438669,0.00016438,2]
[366049155,1750032639062,-490.0,0.00016438,2]
[366049156,1750032639073,-619.42,0.00016438,2]
[366049157,1750032639083,-996.82,0.00016438,2]
[366049158,1750032639092,-1475.15,0.00016438,2]
[366049159,1750032639102,-490.0,0.00016438,2]
[366049160,1750032639114,-531.02,0.00016438,2]
[366049161,1750032639124,-490.0,0.00016438,2]
[366049162,1750032639134,-490.0,0.00016438,2]
[366049163,1750032639144,-490.0,0.00016438,2]
[366049164,1750032639154,-490.0,0.00016438,2]
[366049165,1750032639164,-488.48944073,0.00016438,2]
[366049166,1750032639174,-1759.91,0.00016438,2]
[366049167,1750032639184,-2690.42,0.00016438,2]
[366049168,1750032639194,-490.0,0.00016438,2]
[366049169,1750032639205,-1176.93,0.00016438,2]
[366049170,1750032639215,-490.0,0.00016438,2]
[366049171,1750032639226,-490.0,0.00016438,2]
[366049172,1750032639236,-531.17883933,0.00016438,2]
[366049173,1750032639246,-1226.18646362,0.00016438,2]
[366049176,1750032639998,-347.5,0.00016438,2]
[366049178,1750032641855,-500.0,0.0001639,2]
[366049179,1750032641865,-384.41681687,0.0001639,2]
[366049180,1750032641876,-500.0,0.0001639,2]
[366049181,1750032641891,-522.41775804,0.0001639,2]
[366049182,1750032641900,-505.21577287,0.0001639,2]
[366049183,1750032641910,-188.15535436,0.0001639,2]
[366049184,1750032641919,-500.0,0.0001639,2]
[366049185,1750032641930,-500.0,0.0001639,2]
[366049186,1750032641940,-500.0,0.0001639,2]
[366049187,1750032641949,-500.0,0.0001639,2]
[366049188,1750032641959,-500.0,0.0001639,2]
[366049189,1750032641969,-500.0,0.0001639,2]
[366049190,1750032641979,-70.38353638,0.00016438,2]
[366049191,1750032641989,-616.87,0.00016438,2]
[366049192,1750032641999,-490.0,0.00016438,2]
[366049193,1750032642008,-490.0,0.00016438,2]
[366049194,1750032642018,-490.0,0.00016438,2]
[366049195,1750032642029,-490.0,0.00016438,2]
[366049196,1750032642040,-817.77,0.00016438,2]
[366049197,1750032642049,-1205.47,0.00016438,2]
[366049198,1750032642059,-490.0,0.00016438,2]
[366049199,1750032642069,-726.8,0.00016438,2]
[366049200,1750032642079,-702.24,0.00016438,2]
[366049201,1750032642090,-1778.59,0.00016438,2]
[366049202,1750032642099,-490.0,0.00016438,2]
[366049203,1750032642109,-490.0,0.00016438,2]
[366049204,1750032642118,-527.49,0.00016438,2]
[366049205,1750032642128,-490.0,0.00016438,2]
[366049206,1750032642138,-490.0,0.00016438,2]
[366049207,1750032642147,-662.18,0.00016438,2]
[366049208,1750032642156,-490.0,0.00016438,2]
[366049209,1750032642166,-490.0,0.00016438,2]
[366049210,1750032642176,-490.0,0.00016438,2]
[366049211,1750032642186,-500.0,0.00016438,2]
[366049212,1750032642196,-597.29,0.00016438,2]
[366049213,1750032642206,-597.41,0.00016438,2]
[366049214,1750032642216,-518.43,0.00016438,2]
[366049215,1750032642227,-2121.69,0.00016438,2]
[366049216,1750032642237,-490.0,0.00016438,2]
[366049217,1750032642247,-490.0,0.00016438,2]
[366049218,1750032642257,-490.0,0.00016438,2]
[366049219,1750032642267,-490.0,0.00016438,2]
[366049220,1750032642277,-490.0,0.00016438,2]
[366049221,1750032642287,-490.0,0.00016438,2]
[366049222,1750032642297,-490.0,0.00016438,2]
[366049223,1750032642307,-490.0,0.00016438,2]
[366049224,1750032642317,-490.0,0.00016438,2]
[366049225,1750032642329,-839.75,0.00016438,2]
[366049226,1750032642339,-490.0,0.00016438,2]
[366049227,1750032642349,-490.0,0.00016438,2]
[366049228,1750032642359,-490.0,0.00016438,2]
[366049229,1750032642368,-490.0,0.00016438,2]
[366049230,1750032642378,-383.13069651,0.00016438,2]
[366049231,1750032642388,-490.0,0.00016438,2]
[366049232,1750032642398,-490.0,0.00016438,2]
[366049233,1750032642408,-490.0,0.00016438,2]
[366049234,1750032642418,-490.0,0.00016438,2]
[366049235,1750032642428,-490.0,0.00016438,2]
[366049236,1750032642437,-490.0,0.00016438,2]
[366049237,1750032642447,-564.52,0.00016438,2]
[366049238,1750032642457,-490.0,0.00016438,2]
[366049239,1750032642466,-490.0,0.00016438,2]
[366049240,1750032642476,-583.51,0.00016438,2]
[366049241,1750032642485,-776.98,0.00016438,2]
[366049242,1750032642495,-499.07,0.00016438,2]
[366049243,1750032642505,-490.0,0.00016438,2]
[366049244,1750032642515,-490.0,0.00016438,2]
[366049245,1750032642525,-490.0,0.00016438,2]
[366049246,1750032642536,-797.41,0.00016438,2]
[366049247,1750032642547,-490.0,0.00016438,2]
[366049248,1750032642557,-664.81,0.00016438,2]
[366049249,1750032642566,-616.91,0.00016438,2]
[366049250,1750032642576,-813.5,0.00016438,2]
[366049251,1750032642585,-460.0,0.00016438,2]
[366049252,1750032642594,-700.1,0.00016438,2]
[366049253,1750032642604,-1703.07,0.00016438,2]
[366049254,1750032642614,-490.0,0.00016438,2]
[366049255,1750032642623,-520.79,0.00016438,2]
[366049256,1750032642633,-490.0,0.00016438,2]
[366049257,1750032642642,-490.0,0.00016438,2]
[366049258,1750032642652,-490.0,0.00016438,2]
[366049259,1750032642663,-490.0,0.00016438,2]
[366049260,1750032642672,-1753.13,0.00016438,2]
[366049261,1750032642682,-1574.18,0.00016438,2]
[366049262,1750032642691,-490.0,0.00016438,2]
[366049263,1750032642700,-490.0,0.00016438,2]
[366049264,1750032642709,-490.0,0.00016438,2]
[366049265,1750032642719,-605.74,0.00016438,2]
[366049266,1750032642728,-1167.58,0.00016438,2]
[366049267,1750032642738,-490.0,0.00016438,2]
[366049268,1750032642747,-490.0,0.00016438,2]
[366049269,1750032642756,-490.0,0.00016438,2]
[366049270,1750032642765,-490.0,0.00016438,2]
[366049271,1750032642775,-320.48959936,0.00016438,2]
[366049272,1750032642784,-1278.44,0.00016438,2]
[366049273,1750032642794,-836.0,0.00016438,2]
[366049274,1750032642803,-765.01,0.00016438,2]
[366049276,1750032642813,-490.0,0.00016438,2]
[366049278,1750032642823,-490.0,0.00016438,2]
[366049279,1750032642832,-490.0,0.00016438,2]
[366049280,1750032642842,-490.0,0.00016438,2]
[366049281,1750032642854,-500.0,0.00016438,2]
[366049282,1750032642864,-490.0,0.00016438,2]
[366049283,1750032642874,-500.0,0.00016438,2]
[366049284,1750032642884,-1639.03,0.00016438,2]
[366049285,1750032642894,-702.09,0.00016438,2]
[366049286,1750032642905,-823.51,0.00016438,2]
[366049287,1750032642915,-592.53,0.00016438,2]
[366049288,1750032642924,-2415.33,0.00016438,2]
[366049289,1750032642934,-490.0,0.00016438,2]
[366049290,1750032642944,-490.0,0.00016438,2]
[366049291,1750032642954,-582.19794373,0.00016438,2]
[366049292,1750032642965,-490.0,0.00016438,2]
[366049293,1750032642974,-490.0,0.00016438,2]
[366049294,1750032642984,-638.34806312,0.00016438,2]
[366049295,1750032642993,-490.0,0.00016438,2]
[366049296,1750032643003,-490.0,0.00016438,2]
[366049297,1750032643013,-490.0,0.00016438,2]
[366049298,1750032643023,-490.0,0.00016438,2]
[366049299,1750032643032,-490.0,0.00016438,2]
[366049300,1750032643043,-490.0,0.00016438,2]
[366049301,1750032643052,-792.26,0.00016438,2]
[366049302,1750032643063,-501.8712627,0.00016438,2]
[366049303,1750032643074,-490.0,0.00016438,2]
[366049304,1750032643083,-490.0,0.00016438,2]
[366049305,1750032643093,-530.42,0.00016438,2]
[366049306,1750032643103,-2567.71,0.00016438,2]
[366049307,1750032643112,-490.0,0.00016438,2]
[366049308,1750032643122,-596.08,0.00016438,2]
[366049309,1750032643131,-490.0,0.00016438,2]
[366049310,1750032643141,-687.16,0.00016438,2]
[366049311,1750032643151,-517.0,0.00016438,2]
[366049312,1750032643160,-521.28,0.00016438,2]
[366049313,1750032643171,-1059.22,0.00016438,2]
[366049314,1750032643181,-1215.91,0.00016438,2]
[366049315,1750032643191,-490.0,0.00016438,2]
[366049316,1750032643200,-490.0,0.00016438,2]
[366049317,1750032643209,-586.4631193,0.00016438,2]
[366049318,1750032643219,-500.0,0.00016438,2]
[366049319,1750032643229,-1646.88,0.00016438,2]
[366049320,1750032643240,-919.6,0.00016438,2]
[366049321,1750032643250,-430.0,0.00016438,2]
[366049322,1750032643259,-209.65555912,0.00016438,2]
[366049323,1750032643269,-1138.17,0.00016438,2]
[366049324,1750032643279,-1147.15,0.00016438,2]
[366049325,1750032643289,-490.0,0.00016438,2]
[366049326,1750032643503,-490.0,0.00016438,2]
[366049327,1750032643523,-490.0,0.00016438,2]
[366049328,1750032643533,-2612.76,0.00016438,2]
[366049329,1750032643543,-280.16225236,0.00016438,2]
[366049330,1750032643553,-800.45,0.00016438,2]
[366049331,1750032643563,-490.0,0.00016438,2]
[366049332,1750032643573,-490.0,0.00016438,2]
[366049333,1750032643583,-490.0,0.00016438,2]
[366049334,1750032643592,-490.0,0.00016438,2]
[366049335,1750032643603,-490.0,0.00016438,2]
[366049336,1750032643612,-490.0,0.00016438,2]
[366049337,1750032643622,-490.0,0.00016438,2]
[366049338,1750032643632,-490.0,0.00016438,2]
[366049339,1750032643641,-219.43749144,0.00016438,2]
[366049340,1750032643651,-1658.69,0.00016438,2]
[366049341,1750032643660,-490.0,0.00016438,2]
[366049342,1750032643670,-490.0,0.00016438,2]
[366049343,1750032643679,-490.0,0.00016438,2]
[366049344,1750032643689,-196.00845424,0.00016438,2]
[366049345,1750032643706,-295.03502093,0.00016438,2]
[366049346,1750032643723,-505.51652483,0.00016438,2]
[366049347,1750032643734,-490.0,0.00016438,2]
[366049348,1750032643745,-502.16065372,0.00016438,2]
[366049349,1750032643755,-2513.9,0.00016438,2]
[366049350,1750032643764,-490.0,0.00016438,2]
[366049351,1750032643774,-460.37776554,0.00016438,2]
[366049352,1750032643787,-331.38223446,0.00016438,2]
[366049353,1750032643797,-780.15,0.00016438,2]
[366049354,1750032643806,-676.26,0.00016438,2]
[366049355,1750032643815,-576.46,0.00016438,2]
[366049356,1750032643826,-507.84234672,0.00016438,2]
[366049357,1750032643836,-328.21951673,0.00016438,2]
[366049358,1750032643847,-161.78048327,0.00016438,2]
[366049359,1750032643857,-403.25031304,0.00016438,2]
[366049360,1750032643869,-86.74968696,0.00016438,2]
[366049361,1750032643881,-490.0,0.00016438,2]
[366049362,1750032643891,-756.68,0.00016438,2]
[366049363,1750032643901,-490.0,0.00016438,2]
[366049364,1750032643910,-492.24464897,0.00016438,2]
[366049365,1750032643923,-497.08535103,0.00016438,2]
[366049366,1750032643932,-1522.98,0.00016438,2]
[366049367,1750032643942,-490.0,0.00016438,2]
[366049368,1750032643951,-490.0,0.00016438,2]
[366049369,1750032643961,-173.36581957,0.00016438,2]
[366049370,1750032644526,-316.63418043,0.00016438,2]
[366049371,1750032644536,-490.0,0.00016438,2]
[366049372,1750032644546,-490.0,0.00016438,2]
[366049373,1750032644556,-594.42434095,0.00016438,2]
[366049374,1750032644565,-1539.61,0.00016438,2]
[366049375,1750032644575,-490.0,0.00016438,2]
[366049376,1750032644585,-490.0,0.00016438,2]
[366049377,1750032644595,-490.0,0.00016438,2]
[366049378,1750032644604,-1998.64,0.00016438,2]
[366049379,1750032644614,-467.61211302,0.00016438,2]
[366049380,1750032644624,-490.0,0.00016438,2]
[366049381,1750032644633,-2308.05,0.00016438,2]
[366049382,1750032644643,-490.0,0.00016438,2]
[366049383,1750032644653,-490.0,0.00016438,2]
[366049384,1750032644663,-490.0,0.00016438,2]
[366049385,1750032644672,-1301.68,0.00016438,2]
[366049386,1750032644682,-490.0,0.00016438,2]
[366049387,1750032644692,-1235.32,0.00016438,2]
[366049388,1750032644702,-490.3,0.00016438,2]
[366049389,1750032644711,-490.0,0.00016438,2]
[366049390,1750032644721,-591.29,0.00016438,2]
[366049391,1750032644731,-490.0,0.00016438,2]
[366049392,1750032644741,-490.0,0.00016438,2]
[366049393,1750032644750,-5344.83,0.00016438,2]
[366049394,1750032644760,-490.0,0.00016438,2]
[366049395,1750032644770,-1363.56,0.00016438,2]
[366049396,1750032644779,-490.0,0.00016438,2]
[366049397,1750032644789,-490.0,0.00016438,2]
[366049398,1750032644799,-490.0,0.00016438,2]
[366049399,1750032644808,-490.0,0.00016438,2]
[366049400,1750032644818,-5898.73,0.00016438,2]
[366049401,1750032644829,-490.0,0.00016438,2]
[366049402,1750032644840,-490.0,0.00016438,2]
[366049403,1750032644850,-490.0,0.00016438,2]
[366049404,1750032644861,-2005.05,0.00016438,2]
[366049405,1750032644871,-1784.1,0.00016438,2]
[366049406,1750032644881,-490.0,0.00016438,2]
[366049407,1750032644891,-2213.09,0.00016438,2]
[366049408,1750032644901,-490.0,0.00016438,2]
[366049409,1750032644912,-490.0,0.00016438,2]
[366049410,1750032644921,-490.0,0.00016438,2]
[366049411,1750032644931,-490.0,0.00016438,2]
[366049412,1750032644941,-490.0,0.00016438,2]
[366049413,1750032644959,-586.97,0.00016438,2]
[366049414,1750032644970,-1688.02,0.00016438,2]
[366049415,1750032644981,-490.0,0.00016438,2]
[366049416,1750032644992,-490.0,0.00016438,2]
[366049417,1750032645003,-578.19,0.00016438,2]
[366049418,1750032645014,-6384.49,0.00016438,2]
[366049419,1750032645025,-490.0,0.00016438,2]
[366049420,1750032645036,-490.0,0.00016438,2]
[366049421,1750032645047,-595.49,0.00016438,2]
[366049422,1750032645058,-1124.96,0.00016438,2]
[366049423,1750032645068,-508.01,0.00016438,2]
[366049424,1750032645080,-490.0,0.00016438,2]
[366049425,1750032645091,-490.0,0.00016438,2]
[366049426,1750032645102,-1640.26,0.00016438,2]
[366049427,1750032645113,-1436.8,0.00016438,2]
[366049428,1750032645124,-571.67,0.00016438,2]
[366049429,1750032645135,-470.0,0.00016438,2]
[366049430,1750032645147,-490.0,0.00016438,2]
[366049431,1750032645157,-1392.13,0.00016438,2]
[366049432,1750032645168,-2174.49,0.00016438,2]
[366049433,1750032645180,-3004.96,0.00016438,2]
[366049434,1750032645191,-1788.54,0.00016438,2]
[366049435,1750032645202,-948.02,0.00016438,2]
[366049436,1750032645213,-2389.86,0.00016438,2]
[366049437,1750032645223,-490.0,0.00016438,2]
[366049438,1750032645240,-663.84,0.00016438,2]
[366049439,1750032645251,-1204.95,0.00016438,2]
[366049440,1750032645262,-490.0,0.00016438,2]
[366049441,1750032645273,-490.0,0.00016438,2]
[366049442,1750032645283,-490.0,0.00016438,2]
[366049443,1750032645294,-490.0,0.00016438,2]
[366049444,1750032645305,-490.0,0.00016438,2]
[366049445,1750032645316,-2546.98,0.00016438,2]
[366049446,1750032645326,-490.0,0.00016438,2]
[366049447,1750032645337,-490.0,0.00016438,2]
[366049448,1750032645348,-2001.71,0.00016438,2]
[366049449,1750032645359,-490.0,0.00016438,2]
[366049450,1750032645369,-10211.01,0.00016438,2]
[366049451,1750032645380,-490.0,0.00016438,2]
[366049452,1750032645390,-500.0,0.00016438,2]
[366049453,1750032645408,-3954.27,0.00016438,2]
[366049454,1750032645419,-490.0,0.00016438,2]
[366049455,1750032645429,-628.84,0.00016438,2]
[366049456,1750032645440,-3794.27,0.00016438,2]
[366049457,1750032645450,-638.27,0.00016438,2]
[366049458,1750032645461,-450.0,0.00016438,2]
[366049459,1750032645472,-490.0,0.00016438,2]
[366049460,1750032645483,-490.0,0.00016438,2]
[366049461,1750032645493,-490.0,0.00016438,2]
[366049462,1750032645503,-4277.44,0.00016438,2]
[366049463,1750032645515,-1437.63,0.00016438,2]
[366049464,1750032645525,-500.0,0.00016438,2]
[366049465,1750032645536,-500.0,0.00016438,2]
[366049466,1750032645547,-490.0,0.00016438,2]
[366049467,1750032645557,-2026.08,0.00016438,2]
[366049468,1750032645568,-500.0,0.00016438,2]
[366049469,1750032645579,-500.0,0.00016438,2]
[366049470,1750032645590,-500.0,0.00016438,2]
[366049471,1750032645601,-1645.65,0.00016438,2]
[366049472,1750032645612,-8367.65,0.00016438,2]
[366049474,1750032645625,-490.0,0.00016438,2]
[366049476,1750032645636,-712.83,0.00016438,2]
[366049478,1750032645648,-276.96202492,0.00016438,2]
[366049481,1750032645660,-4894.95,0.00016438,2]
[366049483,1750032645670,-1264.08,0.00016438,2]
[366049485,1750032645680,-1140.2,0.00016438,2]
[366049487,1750032645691,-3518.73,0.00016438,2]
[366049489,1750032645702,-2742.68,0.00016438,2]
[366049491,1750032645712,-628.62,0.00016438,2]
[366049493,1750032645723,-490.0,0.00016438,2]
[366049495,1750032645733,-996.38,0.00016438,2]
[366049497,1750032645744,-490.0,0.00016438,2]
[366049499,1750032645754,-490.0,0.00016438,2]
[366049502,1750032645764,-490.0,0.00016438,2]
[366049504,1750032645775,-1926.87,0.00016438,2]
[366049506,1750032645785,-542.02,0.00016438,2]
[366049508,1750032645797,-490.0,0.00016438,2]
[366049510,1750032645807,-1225.28,0.00016438,2]
[366049512,1750032645818,-692.27,0.00016438,2]
[366049514,1750032645829,-2138.74,0.00016438,2]
[366049517,1750032645844,-2273.58,0.00016438,2]
[366049519,1750032645855,-2412.95,0.00016438,2]
[366049521,1750032645865,-621.85911106,0.00016438,2]
[366049523,1750032645877,-757.51,0.00016438,2]
[366049525,1750032645891,-490.0,0.00016438,2]
[366049527,1750032645901,-490.0,0.00016438,2]
[366049529,1750032645912,-1612.3,0.00016438,2]
[366049531,1750032645924,-468.9037178,0.00016438,2]
[366049533,1750032645934,-902.66,0.00016438,2]
[366049538,1750032646466,-490.0,0.00016438,2]
[366049539,1750032646479,-2018.54,0.00016438,2]
[366049540,1750032646490,-274.12311273,0.00016438,2]
[366049541,1750032646500,-844.73,0.00016438,2]
[366049542,1750032646511,-4244.71,0.00016438,2]
[366049543,1750032646522,-2598.94,0.00016438,2]
[366049544,1750032646533,-490.0,0.00016438,2]
[366049545,1750032646544,-1219.27,0.00016438,2]
[366049546,1750032646555,-490.0,0.00016438,2]
[366049547,1750032646566,-490.0,0.00016438,2]
[366049548,1750032646577,-490.0,0.00016438,2]
[366049549,1750032646587,-490.0,0.00016438,2]
[366049550,1750032646597,-490.0,0.00016438,2]
[366049551,1750032646608,-1119.97,0.00016438,2]
[366049552,1750032646619,-490.0,0.00016438,2]
[366049553,1750032646629,-490.0,0.00016438,2]
[366049554,1750032646639,-490.0,0.00016438,2]
[366049555,1750032646650,-490.0,0.00016438,2]
[366049556,1750032646660,-754.12,0.00016438,2]
[366049557,1750032646670,-490.0,0.00016438,2]
[366049558,1750032646680,-706.15,0.00016438,2]
[366049559,1750032646691,-490.0,0.00016438,2]
[366049560,1750032646701,-2788.55,0.00016438,2]
[366049561,1750032646712,-1937.32,0.00016438,2]
[366049562,1750032646723,-1681.89,0.00016438,2]
[366049563,1750032646734,-2720.18,0.00016438,2]
[366049564,1750032646743,-490.0,0.00016438,2]
[366049565,1750032646753,-2578.64,0.00016438,2]
[366049566,1750032646764,-490.0,0.00016438,2]
[366049567,1750032646773,-490.0,0.00016438,2]
[366049568,1750032646783,-490.0,0.00016438,2]
[366049569,1750032646793,-490.0,0.00016438,2]
[366049570,1750032646803,-490.0,0.00016438,2]
[366049571,1750032646813,-490.0,0.00016438,2]
[366049572,1750032646829,-490.0,0.00016438,2]
[366049573,1750032646840,-703.93,0.00016438,2]
[366049574,1750032646850,-490.0,0.00016438,2]
[366049575,1750032646860,-1708.27,0.00016438,2]
[366049576,1750032646870,-3485.59,0.00016438,2]